bitfinex/quotes_SOLUSD_20230113
["timestamp","ask_amount","ask_price","bid_price","bid_amount"]
[1673615381604,45.41,16.519,16.502,29.98]
[1673615381814,45.41,16.519,16.503,20.0]
[1673615382023,108.096,16.524,16.504,10.0]
[1673615382024,45.4,16.521,16.504,10.0]
[1673615382360,29.8800799,16.522,16.505,134.9517]
[1673615382571,45.4,16.521,16.506,10.0]
[1673615383173,45.4,16.521,16.506,123.801]
[1673615383833,29.8800799,16.521,16.506,123.801]
[1673615384150,45.4,16.52,16.506,123.801]
[1673615384669,75.2800799,16.52,16.506,123.801]
[1673615385305,75.2800799,16.52,16.506,398.4432373]
[1673615385523,45.4,16.523,16.506,398.4432373]
[1673615385707,17.0,16.522,16.506,398.4432373]
[1673615385918,45.4,16.521,16.506,398.4432373]
[1673615386382,75.2800799,16.521,16.506,398.4432373]
[1673615390338,29.8800799,16.521,16.506,398.4432373]
[1673615394347,45.4,16.523,16.506,398.4432373]
[1673615394535,46.8800799,16.522,16.506,398.4432373]
[1673615394944,17.0,16.522,16.506,398.4432373]
[1673615395152,29.8800799,16.521,16.506,398.4432373]
[1673615398316,17.0,16.522,16.506,398.4432373]
[1673615398645,29.8800799,16.521,16.506,398.4432373]
[1673615400330,224.4347,16.524,16.506,398.4432373]
[1673615403796,17.0,16.523,16.506,398.4432373]
[1673615404222,19.97875993,16.522,16.506,398.4432373]
[1673615404411,17.0,16.523,16.506,398.4432373]
[1673615404929,19.97875993,16.523,16.508,10.0]
[1673615405140,116.3387,16.524,16.51,12.5]
[1673615405376,31.08835851,16.526,16.51,287.1422373]
[1673615405691,20.0,16.525,16.51,287.1422373]
[1673615406299,20.0,16.526,16.51,287.1422373]
[1673615406508,29.8800799,16.524,16.51,287.1422373]
[1673615406945,29.8800799,16.524,16.511,10.0]
[1673615407485,29.8800799,16.524,16.511,284.6422373]
[1673615414534,20.0,16.526,16.511,284.6422373]
[1673615414931,29.8800799,16.525,16.511,331.71776386]
[1673615415138,20.0,16.524,16.511,331.71776386]
[1673615417152,20.0,16.524,16.511,321.71776386]
[1673615417689,49.8800799,16.525,16.511,321.71776386]
[1673615417896,20.0,16.525,16.512,10.0]
[1673615418101,20.0,16.526,16.512,10.0]
[1673615418317,29.8800799,16.524,16.512,10.0]
[1673615419582,29.8800799,16.524,16.512,284.6422373]
[1673615420214,20.0,16.526,16.512,284.6422373]
[1673615420423,159.6403,16.529,16.512,284.6422373]
[1673615420424,12.45,16.53,16.512,284.6422373]
[1673615420734,87.7784,16.533,16.512,284.6422373]
[1673615420735,87.7784,16.533,16.514,10.0]
[1673615420929,87.7784,16.533,16.515,20.0]
[1673615421579,87.7784,16.533,16.515,411.3251373]
[1673615422204,43.59835851,16.53,16.515,391.3251373]
[1673615422410,48.08835851,16.529,16.515,391.3251373]
[1673615422738,20.0,16.528,16.515,391.3251373]
[1673615422924,62.38,16.527,16.515,391.3251373]
[1673615423135,20.0,16.526,16.515,391.3251373]
[1673615423666,20.0,16.526,16.515,274.6422373]
[1673615423871,17.0,16.525,16.515,274.6422373]
[1673615424081,20.0,16.524,16.515,274.6422373]
[1673615425441,20.0,16.527,16.515,274.6422373]
[1673615425652,20.0,16.528,16.515,274.6422373]
[1673615427021,17.0,16.527,16.515,274.6422373]
[1673615427232,65.39,16.526,16.515,274.6422373]
[1673615427454,17.0,16.525,16.515,274.6422373]
[1673615427663,20.0,16.524,16.515,274.6422373]
[1673615428420,20.0,16.525,16.515,274.6422373]
[1673615428600,20.0,16.527,16.515,274.6422373]
[1673615428913,17.0,16.526,16.515,274.6422373]
[1673615429336,20.0,16.525,16.515,274.6422373]
[1673615431251,20.0,16.527,16.515,274.6422373]
[1673615431443,17.0,16.526,16.515,274.6422373]
[1673615431650,20.0,16.525,16.515,274.6422373]
[1673615435861,20.0,16.527,16.516,10.0]
[1673615437759,20.0,16.527,16.516,284.6422373]
[1673615440063,20.0,16.527,16.516,274.6422373]
[1673615441948,20.0,16.527,16.517,10.0]
[1673615442500,20.0,16.529,16.517,10.0]
[1673615442905,12.5,16.53,16.517,10.0]
[1673615443127,87.7784,16.533,16.517,10.0]
[1673615443329,31.08835851,16.535,16.517,120.7132]
[1673615443553,20.0,16.534,16.518,10.0]
[1673615444170,20.0,16.535,16.518,10.0]
[1673615446902,20.0,16.535,16.52,12.46]
[1673615447234,31.08835851,16.537,16.521,10.0]
[1673615447428,20.0,16.536,16.521,10.0]
[1673615449968,31.08835851,16.537,16.521,10.0]
[1673615450179,20.0,16.536,16.521,10.0]
[1673615450712,57.8,16.54,16.521,10.0]
[1673615450713,20.0,16.539,16.521,10.0]
[1673615451759,31.08835851,16.538,16.521,10.0]
[1673615452070,20.0,16.537,16.521,10.0]
[1673615452913,20.0,16.537,16.52,12.46]
[1673615453226,65.36,16.537,16.52,12.46]
[1673615461645,65.36,16.537,16.52,62.33]
[1673615461855,31.08835851,16.543,16.521,20.0]
[1673615462062,45.34,16.545,16.522,5.45066]
[1673615462278,45.33,16.546,16.524,10.0]
[1673615462675,45.33,16.546,16.526,10.0]
[1673615463107,19.97875993,16.545,16.527,113.4251]
[1673615463322,45.34,16.544,16.528,10.0]
[1673615464067,45.34,16.544,16.528,204.6592017]
[1673615464581,45.33,16.547,16.528,204.6592017]
[1673615464814,20.0,16.546,16.528,204.6592017]
[1673615464990,45.34,16.545,16.528,204.6592017]
[1673615465201,20.0,16.544,16.528,204.6592017]
[1673615465629,20.0,16.544,16.53,12.46]
[1673615465835,20.0,16.546,16.53,12.46]
[1673615466052,20.0,16.547,16.53,207.1192017]
[1673615466371,20.0,16.547,16.531,10.0]
[1673615466372,45.33,16.546,16.531,10.0]
[1673615466581,20.0,16.545,16.531,10.0]
[1673615467223,20.0,16.547,16.531,10.0]
[1673615467407,45.33,16.546,16.531,10.0]
[1673615467621,20.0,16.545,16.531,10.0]
[1673615468037,20.0,16.545,16.531,204.6592017]
[1673615468247,20.0,16.547,16.531,204.6592017]
[1673615468600,45.33,16.546,16.531,204.6592017]
[1673615468930,20.0,16.545,16.531,204.6592017]
[1673615469322,20.0,16.547,16.531,204.6592017]
[1673615469531,45.33,16.546,16.531,204.6592017]
[1673615469742,20.0,16.545,16.531,204.6592017]
[1673615470382,20.0,16.547,16.531,204.6592017]
[1673615472259,20.0,16.547,16.532,10.0]
[1673615472684,20.0,16.548,16.532,29.06475899]
[1673615472893,20.0,16.549,16.532,29.06475899]
[1673615473124,20.0,16.549,16.532,15.44736]
[1673615473639,20.0,16.549,16.533,113.9065]
[1673615473854,20.0,16.549,16.534,10.0]
[1673615474170,20.0,16.549,16.534,204.6592017]
[1673615474787,20.0,16.549,16.535,10.0]
[1673615475844,45.33,16.548,16.535,10.0]
[1673615476068,20.0,16.547,16.535,204.6592017]
[1673615476805,20.0,16.549,16.535,204.6592017]
[1673615478475,45.31,16.553,16.536,20.0]
[1673615478684,45.31,16.555,16.537,10.0]
[1673615478880,20.0,16.554,16.537,10.0]
[1673615479746,20.0,16.557,16.537,10.0]
[1673615479958,45.31,16.556,16.537,10.0]
[1673615480264,20.0,16.555,16.537,204.6592017]
[1673615480670,20.0,16.556,16.537,204.6592017]
[1673615480881,45.31,16.555,16.537,204.6592017]
[1673615481092,20.0,16.554,16.537,204.6592017]
[1673615481845,20.0,16.556,16.537,204.6592017]
[1673615482161,45.31,16.555,16.537,204.6592017]
[1673615482376,20.0,16.554,16.537,204.6592017]
[1673615483329,20.0,16.555,16.537,204.6592017]
[1673615485009,20.0,16.556,16.537,204.6592017]
[1673615485751,20.0,16.557,16.537,204.6592017]
[1673615485939,62.31,16.556,16.537,204.6592017]
[1673615486151,20.0,16.555,16.537,204.6592017]
[1673615486361,45.3,16.557,16.537,204.6592017]
[1673615486571,20.0,16.556,16.537,204.6592017]
[1673615488378,20.0,16.557,16.537,204.6592017]
[1673615488999,49.8800799,16.557,16.538,10.0]
[1673615489207,20.0,16.557,16.54,12.51]
[1673615489423,20.0,16.558,16.54,12.51]
[1673615490064,19.97875993,16.557,16.54,12.51]
[1673615490242,20.0,16.556,16.54,207.1692017]
[1673615493422,20.0,16.556,16.54,194.6592017]
[1673615493924,12.41,16.55,16.54,194.6592017]
[1673615496355,37.0,16.549,16.54,124.65710334]
[1673615499927,56.97875993,16.549,16.54,124.65710334]
[1673615500554,39.97875993,16.549,16.54,124.65710334]
[1673615506031,20.0,16.549,16.54,124.65710334]
[1673615506225,20.0,16.549,16.541,10.0]
[1673615506554,20.0,16.549,16.541,134.65710333]
[1673615507166,12.5,16.55,16.541,134.65710333]
[1673615507385,76.38696354,16.558,16.541,134.65710333]
[1673615507585,45.3,16.558,16.541,134.65710333]
[1673615507791,114.5069,16.559,16.542,10.0]
[1673615508221,114.5069,16.559,16.543,109.9363]
[1673615508430,144.3869799,16.559,16.543,234.59340333]
[1673615508655,175.47394344,16.559,16.543,234.59340333]
[1673615508850,175.47394344,16.559,16.544,10.0]
[1673615510336,20.0,16.558,16.544,10.0]
[1673615510553,20.0,16.558,16.544,134.65710333]
[1673615512014,17.0,16.557,16.544,124.65710333]
[1673615512232,20.0,16.556,16.544,124.65710333]
[1673615513813,12.41,16.55,16.544,124.65710333]
[1673615514243,20.0,16.549,16.544,124.65710333]
[1673615516446,65.32,16.549,16.544,124.65710333]
[1673615517372,85.29875993,16.549,16.544,124.65710333]
[1673615517587,84.79875993,16.549,16.544,124.65710333]
[1673615517798,64.82,16.549,16.544,124.65710333]
[1673615518756,84.79875993,16.549,16.544,124.65710333]
[1673615521472,84.79875993,16.549,16.544,65.68710333]
[1673615524413,17.0,16.548,16.544,65.68710333]
[1673615524628,20.0,16.547,16.544,65.68710333]
[1673615526437,17.0,16.546,16.544,65.68710333]
[1673615526621,20.0,16.545,16.544,65.68710333]
[1673615533690,20.0,16.549,16.545,10.0]
[1673615534009,20.0,16.549,16.544,65.68710333]
[1673615534185,12.51,16.55,16.544,65.68710333]
[1673615535347,20.0,16.549,16.544,65.68710333]
[1673615538092,12.51,16.55,16.544,65.68710333]
[1673615538312,45.3,16.558,16.544,65.68710333]
[1673615538514,20.0,16.557,16.545,10.0]
[1673615538732,20.0,16.557,16.545,113.23710332]
[1673615538919,20.0,16.557,16.545,75.68710332]
[1673615539132,20.0,16.559,16.545,75.68710332]
[1673615539684,39.97875993,16.559,16.545,75.68710332]
[1673615540088,19.97875993,16.559,16.545,75.68710332]
[1673615540946,19.97875993,16.559,16.546,10.0]
[1673615541553,20.0,16.558,16.546,10.0]
[1673615542194,17.0,16.557,16.546,10.0]
[1673615542614,20.0,16.556,16.546,10.0]
[1673615545653,95.1900799,16.556,16.545,65.68710332]
[1673615545987,17.0,16.555,16.545,65.68710332]
[1673615546192,20.0,16.554,16.545,65.68710332]
[1673615546407,17.0,16.553,16.545,65.68710332]
[1673615547132,65.32,16.552,16.545,65.68710332]
[1673615547345,95.2000799,16.552,16.545,65.68710332]
[1673615547666,65.32,16.552,16.545,65.68710332]
[1673615547871,29.8800799,16.551,16.545,65.68710332]
[1673615548098,20.0,16.55,16.545,65.68710332]
[1673615549343,20.0,16.551,16.545,65.68710332]
[1673615552505,180.12576354,16.56,16.545,65.68710332]
[1673615552717,20.0,16.559,16.545,65.68710332]
[1673615552904,20.0,16.559,16.546,10.0]
[1673615553113,45.3,16.558,16.546,10.0]
[1673615553341,20.0,16.557,16.546,10.0]
[1673615553751,20.0,16.558,16.546,10.0]
[1673615553958,45.3,16.557,16.546,10.0]
[1673615554184,20.0,16.556,16.546,10.0]
[1673615554713,20.0,16.558,16.546,10.0]
[1673615554923,62.3,16.557,16.546,10.0]
[1673615555128,20.0,16.556,16.546,10.0]
[1673615560687,20.0,16.559,16.546,10.0]
[1673615565948,20.0,16.559,16.546,47.48]
[1673615566374,20.0,16.559,16.546,10.0]
[1673615568283,17.0,16.558,16.546,10.0]
[1673615568461,20.0,16.557,16.546,10.0]
[1673615572479,20.0,16.559,16.546,10.0]
[1673615575739,65.3,16.559,16.546,10.0]
[1673615575934,20.0,16.559,16.546,10.0]
[1673615577951,51.08696354,16.559,16.546,10.0]
[1673615578368,45.3,16.558,16.546,10.0]
[1673615578577,20.0,16.557,16.546,10.0]
[1673615583514,51.08696354,16.558,16.546,10.0]
[1673615584983,51.08696354,16.558,16.545,65.68710332]
[1673615585187,45.3,16.557,16.545,65.68710332]
[1673615585395,20.0,16.556,16.545,65.68710332]
[1673615585815,100.05807296,16.558,16.545,65.68710332]
[1673615586025,62.3,16.557,16.545,65.68710332]
[1673615586237,20.0,16.556,16.545,65.68710332]
[1673615589933,20.0,16.557,16.546,10.0]
[1673615590123,51.08696354,16.559,16.546,10.0]
[1673615590464,100.05807296,16.559,16.545,65.68710332]
[1673615590662,45.3,16.558,16.545,65.68710332]
[1673615590872,20.0,16.557,16.545,65.68710332]
[1673615591409,36.97875993,16.556,16.545,65.68710332]
[1673615591605,20.0,16.555,16.545,65.68710332]
[1673615592135,20.0,16.555,16.546,10.0]
[1673615592351,20.0,16.556,16.546,10.0]
[1673615593926,19.97875993,16.555,16.545,65.68710332]
[1673615594247,20.0,16.554,16.545,65.68710332]
[1673615594765,20.0,16.556,16.545,65.68710332]
[1673615594977,19.97875993,16.553,16.545,65.68710332]
[1673615595190,19.97875993,16.553,16.545,75.68710332]
[1673615595721,19.97875993,16.553,16.546,10.0]
[1673615602432,20.0,16.556,16.546,10.0]
[1673615602760,19.97875993,16.556,16.546,10.0]
[1673615602966,20.0,16.555,16.546,10.0]
[1673615604443,39.97875993,16.558,16.546,10.0]
[1673615606003,20.0,16.558,16.546,10.0]
[1673615606312,39.97875993,16.558,16.546,10.0]
[1673615607504,45.3,16.557,16.546,10.0]
[1673615607722,20.0,16.556,16.546,10.0]
[1673615608242,19.97875993,16.556,16.546,10.0]
[1673615608680,20.0,16.555,16.546,10.0]
[1673615610660,19.97875993,16.554,16.546,10.0]
[1673615612431,20.0,16.558,16.546,10.0]
[1673615612653,19.97875993,16.557,16.546,10.0]
[1673615612863,20.0,16.556,16.546,10.0]
[1673615613498,39.97875993,16.556,16.546,10.0]
[1673615614982,45.3,16.559,16.547,45.33]
[1673615615178,124.78392709,16.57,16.548,10.0]
[1673615615179,19.97875993,16.562,16.548,10.0]
[1673615618767,45.28,16.567,16.551,10.0]
[1673615618960,39.97875993,16.566,16.551,120.1218]
[1673615619153,45.28,16.565,16.551,120.1218]
[1673615619360,20.0,16.564,16.551,120.1218]
[1673615619572,39.97875993,16.564,16.551,172.9393873]
[1673615620097,20.0,16.564,16.551,172.9393873]
[1673615620302,19.97875993,16.563,16.551,172.9393873]
[1673615620953,45.29,16.562,16.551,172.9393873]
[1673615621593,19.97875993,16.561,16.551,172.9393873]
[1673615621800,45.28,16.565,16.551,172.9393873]
[1673615621991,20.0,16.564,16.551,172.9393873]
[1673615622202,45.29,16.563,16.551,172.9393873]
[1673615622431,65.26875993,16.563,16.551,172.9393873]
[1673615622662,45.29,16.563,16.551,172.9393873]
[1673615622978,19.97875993,16.562,16.551,172.9393873]
[1673615623706,20.0,16.564,16.551,172.9393873]
[1673615623918,45.27,16.568,16.551,172.9393873]
[1673615623919,19.97875993,16.565,16.552,41.96]
[1673615624110,20.0,16.564,16.552,41.96]
[1673615624323,20.0,16.564,16.553,10.0]
[1673615624757,20.0,16.568,16.553,10.0]
[1673615625586,20.0,16.568,16.553,62.8175873]
[1673615626011,20.0,16.568,16.554,10.0]
[1673615626850,45.28,16.567,16.554,10.0]
[1673615627070,20.0,16.566,16.554,10.0]
[1673615627585,19.97875993,16.565,16.554,10.0]
[1673615627798,20.0,16.564,16.554,62.8175873]
[1673615628426,19.97875993,16.564,16.554,62.8175873]
[1673615629587,17.5,16.567,16.554,62.8175873]
[1673615629789,19.97875993,16.566,16.554,62.8175873]
[1673615630330,20.0,16.565,16.554,62.8175873]
[1673615630974,39.97875993,16.565,16.554,62.8175873]
[1673615631697,20.0,16.565,16.554,62.8175873]
[1673615632014,19.97875993,16.564,16.554,62.8175873]
[1673615634299,20.0,16.567,16.554,52.8175873]
[1673615634735,19.97875993,16.566,16.554,52.8175873]
[1673615635157,20.0,16.565,16.554,52.8175873]
[1673615635777,19.97875993,16.564,16.554,52.8175873]
[1673615639163,19.97875993,16.564,16.555,10.0]
[1673615640009,20.0,16.567,16.555,62.8175873]
[1673615640225,20.0,16.568,16.555,62.8175873]
[1673615640536,20.0,16.568,16.555,100.1175873]
[1673615641671,45.28,16.567,16.555,100.1175873]
[1673615641884,20.0,16.566,16.555,62.8175873]
[1673615642308,29.8800799,16.565,16.555,62.8175873]
[1673615642517,20.0,16.564,16.555,62.8175873]
[1673615643266,29.8800799,16.563,16.555,62.8175873]
[1673615643671,20.0,16.567,16.555,62.8175873]
[1673615643986,29.8800799,16.566,16.555,62.8175873]
[1673615644191,20.0,16.565,16.555,62.8175873]
[1673615645672,29.8800799,16.565,16.555,62.8175873]
[1673615645887,20.0,16.564,16.555,62.8175873]
[1673615646839,29.8800799,16.564,16.555,62.8175873]
[1673615647032,20.0,16.563,16.555,62.8175873]
[1673615647242,29.8800799,16.564,16.555,62.8175873]
[1673615647454,45.27,16.568,16.555,62.8175873]
[1673615647671,49.8800799,16.567,16.555,62.8175873]
[1673615648092,20.0,16.567,16.555,62.8175873]
[1673615648292,29.8800799,16.566,16.555,62.8175873]
[1673615648506,20.0,16.565,16.555,62.8175873]
[1673615649048,29.8800799,16.564,16.555,62.8175873]
[1673615650523,20.0,16.565,16.555,62.8175873]
[1673615650732,20.0,16.568,16.555,62.8175873]
[1673615650943,29.8800799,16.564,16.555,62.8175873]
[1673615654507,20.0,16.568,16.555,62.8175873]
[1673615654719,29.8800799,16.567,16.555,62.8175873]
[1673615654928,29.8800799,16.567,16.557,10.0]
[1673615655976,29.8800799,16.567,16.557,62.8175873]
[1673615656706,20.0,16.566,16.557,52.8175873]
[1673615656931,65.28,16.566,16.557,52.8175873]
[1673615657142,20.0,16.566,16.557,52.8175873]
[1673615657357,29.8800799,16.565,16.557,52.8175873]
[1673615657667,20.0,16.564,16.557,52.8175873]
[1673615658279,29.8800799,16.564,16.557,52.8175873]
[1673615660697,20.0,16.567,16.557,52.8175873]
[1673615660923,29.8800799,16.566,16.557,52.8175873]
[1673615661131,75.1600799,16.566,16.557,52.8175873]
[1673615661345,20.0,16.565,16.557,52.8175873]
[1673615662500,49.8800799,16.565,16.557,52.8175873]
[1673615662691,20.0,16.565,16.557,52.8175873]
[1673615662905,20.0,16.567,16.557,52.8175873]
[1673615663120,29.8800799,16.566,16.557,52.8175873]
[1673615663446,20.0,16.565,16.557,52.8175873]
[1673615664794,29.8800799,16.567,16.557,52.8175873]
[1673615665130,20.0,16.566,16.557,52.8175873]
[1673615666062,20.0,16.566,16.558,10.0]
[1673615666797,20.0,16.568,16.558,10.0]
[1673615667012,29.8800799,16.567,16.558,10.0]
[1673615667228,20.0,16.566,16.558,10.0]
[1673615668286,20.0,16.566,16.558,62.8175873]
[1673615670075,20.0,16.568,16.558,62.8175873]
[1673615672396,20.0,16.568,16.558,52.8175873]
[1673615674066,29.8800799,16.567,16.558,52.8175873]
[1673615674274,20.0,16.566,16.558,52.8175873]
[1673615675232,29.8800799,16.566,16.558,52.8175873]
[1673615675445,20.0,16.565,16.558,52.8175873]
[1673615677127,29.8800799,16.566,16.558,52.8175873]
[1673615677338,20.0,16.565,16.558,52.8175873]
[1673615678914,29.8800799,16.566,16.558,52.8175873]
[1673615679104,20.0,16.565,16.558,52.8175873]
[1673615679308,20.0,16.565,16.559,10.0]
[1673615679733,20.0,16.566,16.559,10.0]
[1673615680259,20.0,16.566,16.559,62.8175873]
[1673615682811,20.0,16.566,16.559,52.8175873]
[1673615683738,29.8800799,16.566,16.559,52.8175873]
[1673615683954,20.0,16.565,16.559,52.8175873]
[1673615684588,195.58956354,16.569,16.559,52.8175873]
[1673615684589,20.0,16.568,16.559,52.8175873]
[1673615684800,19.97875993,16.564,16.559,52.8175873]
[1673615684996,40.79531171,16.568,16.56,10.0]
[1673615685213,136.18106354,16.578,16.562,10.0]
[1673615685435,136.18106354,16.578,16.563,37.3]
[1673615686357,20.0,16.577,16.564,10.0]
[1673615686574,20.0,16.577,16.565,37.3]
[1673615688061,20.0,16.577,16.566,10.0]
[1673615688375,20.0,16.577,16.566,62.8175873]
[1673615689203,20.0,16.577,16.566,52.8175873]
[1673615695529,17.0,16.576,16.566,52.8175873]
[1673615695713,20.0,16.575,16.566,52.8175873]
[1673615698887,17.0,16.574,16.566,37.8858873]
[1673615699097,17.0,16.574,16.552,64.93291006]
[1673615699098,39.11764882,16.565,16.55,10.0]
[1673615699310,20.0,16.564,16.551,110.1218]
[1673615699741,12.46,16.56,16.551,110.1218]
[1673615706130,12.46,16.56,16.549,45.32]
[1673615709216,12.46,16.56,16.55,10.0]
[1673615709414,12.46,16.56,16.551,45.32]
[1673615710686,20.0,16.564,16.552,10.0]
[1673615710892,20.0,16.564,16.553,45.31]
[1673615711110,20.0,16.564,16.554,10.0]
[1673615711298,20.0,16.564,16.555,45.31]
[1673615711510,20.0,16.564,16.556,10.0]
[1673615713397,20.0,16.564,16.557,45.3]
[1673615718043,20.0,16.564,16.556,10.0]
[1673615718355,20.0,16.564,16.555,45.31]
[1673615718567,20.0,16.564,16.553,45.31]
[1673615719821,20.0,16.564,16.554,10.0]
[1673615721195,20.0,16.564,16.555,45.31]
[1673615721823,20.0,16.564,16.554,10.0]
[1673615722344,20.0,16.564,16.553,45.31]
[1673615727389,20.0,16.564,16.554,10.0]
[1673615730335,20.0,16.564,16.555,45.31]
[1673615730531,20.0,16.564,16.556,10.0]
[1673615731895,20.0,16.564,16.555,45.31]
[1673615732100,20.0,16.564,16.554,10.0]
[1673615732949,20.0,16.564,16.555,45.31]
[1673615733164,20.0,16.564,16.554,10.0]
[1673615733589,20.0,16.564,16.551,159.2405]
[1673615733788,65.28,16.564,16.551,113.9205]
[1673615736546,12.41,16.56,16.545,454.80951602]
[1673615736854,12.41,16.56,16.545,409.46951602]
[1673615737073,12.41,16.56,16.546,45.33]
[1673615739167,12.41,16.56,16.546,55.33]
[1673615739702,12.41,16.56,16.546,45.33]
[1673615740947,12.41,16.56,16.545,454.80951602]
[1673615741159,12.41,16.56,16.546,30.0]
[1673615741691,12.41,16.56,16.547,45.33]
[1673615743140,12.41,16.56,16.548,10.0]
[1673615744823,12.41,16.56,16.549,45.32]
[1673615745470,12.41,16.56,16.548,10.0]
[1673615746300,12.41,16.56,16.547,45.33]
[1673615746523,65.3,16.559,16.546,45.33]
[1673615746717,65.3,16.559,16.545,454.80951602]
[1673615747258,65.3,16.559,16.545,409.46951602]
[1673615747993,17.0,16.558,16.545,409.46951602]
[1673615748200,20.0,16.557,16.545,12.86951602]
[1673615748418,20.0,16.557,16.545,58.20951602]
[1673615749559,20.0,16.557,16.545,12.86951602]
[1673615749982,17.0,16.556,16.545,12.86951602]
[1673615750195,65.31,16.555,16.545,12.86951602]
[1673615751779,20.0,16.555,16.545,12.86951602]
[1673615752621,20.0,16.557,16.545,12.86951602]
[1673615752810,20.0,16.558,16.545,12.86951602]
[1673615755124,29.8800799,16.557,16.545,12.86951602]
[1673615755458,20.0,16.556,16.545,12.86951602]
[1673615755776,20.0,16.558,16.545,12.86951602]
[1673615756611,62.3,16.557,16.545,12.86951602]
[1673615756828,20.0,16.556,16.545,12.86951602]
[1673615757149,17.0,16.555,16.545,12.86951602]
[1673615757450,20.0,16.554,16.545,12.86951602]
[1673615763963,17.0,16.553,16.545,12.86951602]
[1673615764492,20.0,16.554,16.545,12.86951602]
[1673615764691,20.0,16.556,16.545,12.86951602]
[1673615764896,20.0,16.558,16.545,12.86951602]
[1673615765107,45.3,16.557,16.545,12.86951602]
[1673615765326,20.0,16.556,16.545,12.86951602]
[1673615765865,20.0,16.558,16.545,12.86951602]
[1673615766175,62.3,16.557,16.545,12.86951602]
[1673615766367,20.0,16.556,16.545,12.86951602]
[1673615768173,45.3,16.559,16.545,12.86951602]
[1673615768381,12.5,16.56,16.546,65.33]
[1673615768597,45.28,16.564,16.546,65.33]
[1673615768806,45.28,16.564,16.547,10.0]
[1673615769018,45.28,16.564,16.548,45.33]
[1673615769338,45.28,16.564,16.549,10.0]
[1673615769530,17.0,16.563,16.549,10.0]
[1673615769940,45.28,16.564,16.549,10.0]
[1673615770487,12.51,16.56,16.547,45.33]
[1673615770706,65.3,16.559,16.545,12.86951602]
[1673615771310,17.0,16.558,16.545,12.86951602]
[1673615771521,45.3,16.557,16.545,12.86951602]
[1673615771740,12.51,16.56,16.547,10.0]
[1673615772154,45.28,16.564,16.547,10.0]
[1673615772368,39.11764882,16.565,16.548,45.33]
[1673615772578,65.28,16.564,16.549,10.0]
[1673615772806,65.28,16.564,16.55,45.32]
[1673615773505,17.0,16.563,16.549,55.32]
[1673615773721,45.29,16.562,16.549,55.32]
[1673615773931,65.28,16.564,16.55,10.0]
[1673615774151,20.0,16.564,16.551,45.32]
[1673615774364,20.0,16.564,16.552,10.0]
[1673615775420,65.28,16.564,16.552,10.0]
[1673615775745,20.0,16.564,16.552,10.0]
[1673615778043,20.0,16.564,16.553,45.31]
[1673615778470,20.0,16.564,16.554,10.0]
[1673615779312,45.29,16.563,16.554,10.0]
[1673615779620,62.29,16.563,16.552,10.0]
[1673615780872,62.29,16.563,16.551,113.2055]
[1673615784239,62.29,16.563,16.549,10.0]
[1673615784443,12.51,16.56,16.548,109.22]
[1673615784664,45.3,16.559,16.548,109.22]
[1673615785087,45.3,16.559,16.549,10.0]
[1673615786564,45.3,16.559,16.549,9.0]